fUSD/lending_fUSD_20260504
["ID","MTS","AMOUNT","RATE_DAILY","PERIOD"]
[421540148,1777838471000,-500.0,0.00013698,2]
[421540149,1777838471000,-500.0,0.00013698,2]
[421540150,1777838471000,-500.0,0.00013698,2]
[421540151,1777838471000,-166.66,0.00013699,2]
[421540152,1777838471000,-185.91,0.00013853,2]
[421540153,1777838471000,-1059.89,0.00013947,2]
[421540155,1777838471000,-166.66,0.00013982,2]
[421540157,1777838471000,-5388.63216993,0.00014005,2]
[421540154,1777838471000,-493.63,0.00013962,2]
[421540159,1777838471000,-166.66,0.00014264,2]
[421540162,1777838471000,-150.0,0.00014452,2]
[421540161,1777838471000,-250.0,0.00014412,2]
[421540158,1777838471000,-150.0,0.0001404,2]
[421540160,1777838471000,-231.44368891,0.00014412,2]
[421540163,1777838471000,-2500.0,0.00014471,2]
[421540164,1777838471000,-150.0,0.00014512,2]
[421540165,1777838471000,-332.6586279,0.00014513,2]
[421540166,1777838471000,-9906.82242892,0.00014513,2]
[421540156,1777838471000,-250.0,0.00014,2]
[421540172,1777838705000,-10000.01,0.00014513,2]
[421540173,1777838705000,-5760.01677718,0.00014513,2]
[421540174,1777838705000,-166.08625686,0.00014513,2]
[421540175,1777838705000,-166.08625686,0.00014513,2]
[421540177,1777838705000,-2400.0,0.00014198,2]
[421540178,1777838705000,-7600.01,0.00014523,2]
[421540176,1777838705000,-3907.8207091,0.00014523,2]
[421540190,1777838706000,-135.50398455,0.00014641,2]
[421540180,1777838706000,-166.66,0.00014547,2]
[421540179,1777838706000,-4394.7444716,0.00014523,2]
[421540186,1777838706000,-241.16928022,0.0001464,2]
[421540181,1777838706000,-2400.0,0.00014553,2]
[421540182,1777838706000,-500.0,0.0001464,2]
[421540185,1777838706000,-500.0,0.0001464,2]
[421540183,1777838706000,-192.15685962,0.0001464,2]
[421540192,1777838706000,-150.0,0.00014056,2]
[421540187,1777838706000,-158.4306982,0.0001464,2]
[421540194,1777838706000,-2500.0,0.00014541,2]
[421540195,1777838706000,-5933.09374419,0.00014641,2]
[421540191,1777838706000,-1000.0,0.00014056,2]
[421540189,1777838706000,-500.0,0.0001464,2]
[421540188,1777838706000,-500.0,0.0001464,2]
[421540184,1777838706000,-311.34470581,0.0001464,2]
[421540193,1777838706000,-416.91625581,0.00014541,2]
[421540199,1777838707000,-10000.01,0.00014641,2]
[421540198,1777838707000,-10000.01,0.00014641,2]
[421540197,1777838707000,-10000.01,0.00014641,2]
[421540196,1777838707000,-10000.01,0.00014641,2]
[421540201,1777838708000,-300.0,0.00014512,2]
[421540200,1777838708000,-200.0,0.00013957,2]
[421540202,1777838708000,-9500.01,0.00014641,2]
[421540203,1777838708000,-10000.01,0.00014641,2]
[421540204,1777838708000,-10000.01,0.00014641,2]
[421540208,1777838708000,-152.0,0.00014243,7]
[421540206,1777838708000,-10000.01,0.00014641,2]
[421540207,1777838708000,-152.0,0.00014243,7]
[421540209,1777838708000,-152.0,0.00014243,7]
[421540210,1777838708000,-9544.01,0.00014641,2]
[421540205,1777838708000,-10000.01,0.00014641,2]
[421540211,1777838709000,-10000.01,0.00014641,2]
[421540213,1777838709000,-10000.01,0.00014641,2]
[421540214,1777838709000,-10000.01,0.00014641,2]
[421540212,1777838709000,-10000.01,0.00014641,2]
[421540218,1777838892000,2000.0,0.00013453,2]
[421540229,1777838948000,-300.0,0.00013737,2]
[421540232,1777838948000,-300.0,0.00013829,2]
[421540233,1777838948000,-237.72888282,0.0001383,2]
[421540230,1777838948000,-300.0,0.00013829,2]
[421540231,1777838948000,-227.0,0.00013829,2]
[421540228,1777838948000,-166.66,0.00013699,2]
[421540226,1777838948000,-150.00000001,0.00013488,2]
[421540225,1777838948000,-223.61518874,0.00013488,2]
[421540227,1777838948000,-253.82744391,0.00013488,2]
[421540224,1777838948000,-150.00000001,0.00013488,2]
[421540222,1777838948000,-152.88062369,0.00013488,2]
[421540221,1777838948000,-150.0,0.00013488,2]
[421540223,1777838948000,-250.0,0.00013488,2]
[421540235,1777838948000,-1852.42,0.00013893,2]
[421540243,1777838948000,-423.2806185,0.00014323,2]
[421540238,1777838948000,-150.0,0.00013987,2]
[421540250,1777838948000,-27942.56241538,0.00014423,2]
[421540249,1777838948000,-567.94129406,0.00014422,2]
[421540236,1777838948000,-777.69,0.00013929,2]
[421540246,1777838948000,-3331.19016216,0.00014387,2]
[421540247,1777838948000,-150.0,0.00014422,2]
[421540244,1777838948000,-300.0728897,0.00014323,2]
[421540248,1777838948000,-518.81849615,0.00014422,2]
[421540242,1777838948000,-166.66,0.00014247,2]
[421540240,1777838948000,-166.66,0.0001411,2]
[421540241,1777838948000,-388.75697014,0.00014134,2]
[421540239,1777838948000,-166.66,0.00014086,2]
[421540237,1777838948000,-166.66,0.00013973,2]
[421540234,1777838948000,-166.66,0.00013836,2]
[421540245,1777838948000,-166.66,0.00014384,2]
[421540253,1777838971000,-3857.21754849,0.00014423,2]
[421540252,1777838971000,-200.0,0.00014422,2]
[421540251,1777838971000,-779.81137551,0.00014406,2]
[421540254,1777839017000,199.85,6.901e-05,2]
[421540258,1777839018000,199.85,8.354e-05,2]
[421540257,1777839018000,199.85,7.991e-05,2]
[421540256,1777839018000,199.85,7.628e-05,2]
[421540255,1777839018000,199.85,7.265e-05,2]
[421540259,1777839019000,199.85,8.718e-05,2]
[421540261,1777839019000,199.85,9.444e-05,2]
[421540262,1777839019000,199.85,9.807e-05,2]
[421540260,1777839019000,199.85,9.081e-05,2]
[421540267,1777839020000,199.85,0.00011623,2]
[421540266,1777839020000,199.85,0.0001126,2]
[421540265,1777839020000,199.85,0.00010897,2]
[421540264,1777839020000,199.85,0.00010534,2]
[421540263,1777839020000,199.85,0.00010171,2]
[421540268,1777839021000,199.85,0.00011987,2]
[421540269,1777839021000,199.85,0.0001235,2]
[421540271,1777839021000,199.85,0.00013076,2]
[421540270,1777839021000,199.85,0.00012713,2]
[421540272,1777839022000,199.85,0.0001344,2]
[421540278,1777839031000,-3359.11512418,0.00014005,2]
[421540277,1777839031000,-199.85,0.00013803,2]
[421540281,1777839031000,-5000.0,0.00014005,2]
[421540282,1777839031000,-5000.0,0.00014005,2]
[421540280,1777839031000,-5000.0,0.00014005,2]
[421540279,1777839031000,-1964.43759722,0.00014005,2]
[421540284,1777839031000,-300.0,0.00014422,2]
[421540286,1777839031000,-550951.47291583,0.00014423,2]
[421540287,1777839031000,-221500.0826797,0.00014423,2]
[421540288,1777839031000,-1254.41808677,0.00014423,2]
[421540285,1777839031000,-1200.0,0.00014422,2]
[421540289,1777839031000,-819.6114117,0.00014423,2]
[421540283,1777839031000,-1087.4435,0.00014413,2]
[421540317,1777839037000,-380.52932165,0.00014423,2]
[421540315,1777839037000,-48993.48432967,0.00014423,2]
[421540316,1777839037000,-829.67010334,0.00014423,2]
[421540532,1777839039000,-535.94538832,0.00014423,2]
[421540530,1777839039000,-480.53080747,0.00014423,2]
[421540618,1777839040000,-430207.157534,0.00014423,2]
[421540602,1777839040000,-545.5,0.00014423,2]
[421540600,1777839040000,-152.0,0.00013699,7]
[421540912,1777839042000,-51.18454765,0.00013703,7]
[421540910,1777839042000,-152.0,0.00013703,7]
[421540908,1777839042000,-152.0,0.00013699,7]
[421541324,1777839046000,-100.81545235,0.00013703,7]
[421541325,1777839046000,-8945.52383451,0.00014423,2]
[421541395,1777839077000,470.6858,0.00013388,2]
[421541396,1777839153000,5000.01,0.00013569,2]
[421541397,1777839153000,5000.0,0.00013569,2]
[421541398,1777839164000,1062.8,0.00013554,2]
[421541399,1777839188000,170.0,0.00013613,2]
[421541400,1777839214000,350.567,0.00013388,2]
[421541401,1777839264000,2000.0,0.00013559,2]
[421541402,1777839296000,173.24,0.00013548,2]
[421541403,1777839316000,150.0,0.00013529,2]
[421541404,1777839328000,163.69,0.00013529,2]
[421541406,1777839397000,1445.38,0.00013513,2]
[421541407,1777839409000,-385.3783,0.00013638,2]
[421541408,1777839422000,150.0,0.00013547,2]
[421541409,1777839434000,-246.0,0.00013638,2]
[421541410,1777839434000,724.77,0.00013547,2]
[421541412,1777839459000,-320.44950894,0.00013904,2]
[421541413,1777839515000,171.0,0.00013618,2]
[421541414,1777839530000,-253.0835,0.00013904,2]
[421541415,1777839612000,200.0,0.00013452,2]
[421541417,1777839676000,-388.94193208,0.00013746,2]
[421541416,1777839676000,-162.82444385,0.00013746,2]
[421541418,1777839689000,915.12,0.00013382,2]
[421541428,1777839804000,1440.0,0.00013328,2]
[421541429,1777839845000,171.0,0.00013618,2]
[421541433,1777839904000,150.0,0.00013586,2]
[421541432,1777839904000,150.0,0.00012871,2]
[421541434,1777839907000,150.0,0.00012871,2]
[421541435,1777839907000,150.0,0.00012871,2]
[421541436,1777839907000,150.0,0.00013348,2]
[421541437,1777839910000,150.0,0.00012871,2]
[421541442,1777839914000,150.0,0.00013189,2]
[421541443,1777839914000,150.0,0.00013348,2]
[421541441,1777839914000,150.0,0.0001303,2]
[421541440,1777839914000,150.0,0.00012871,2]
[421541439,1777839914000,150.0,0.00012871,2]
[421541438,1777839914000,261.26925773,0.00012871,2]
[421541444,1777839914000,150.0,0.00013507,2]
[421541449,1777839917000,150.0,0.00013507,2]
[421541448,1777839917000,150.0,0.00013348,2]
[421541447,1777839917000,150.0,0.00013189,2]
[421541446,1777839917000,150.0,0.0001303,2]
[421541445,1777839917000,150.0,0.00012871,2]
[421541450,1777839925000,150.0,0.00012871,2]
[421541451,1777839925000,150.0,0.0001305,2]
[421541452,1777839925000,150.0,0.00013229,2]
[421541453,1777839925000,127.74074227,0.00013408,2]
[421541455,1777839925000,150.0,0.00013586,2]
[421541456,1777839925000,150.0,0.00012871,2]
[421541457,1777839925000,150.0,0.00012933,2]
[421541454,1777839925000,22.25925773,0.00013408,2]
[421541468,1777839926000,150.0,0.00013617,2]
[421541467,1777839926000,150.0,0.00013555,2]
[421541466,1777839926000,150.0,0.00013493,2]
[421541465,1777839926000,150.0,0.00013431,2]
[421541464,1777839926000,150.0,0.00013369,2]
[421541463,1777839926000,150.0,0.00013306,2]
[421541462,1777839926000,150.0,0.00013244,2]
[421541461,1777839926000,150.0,0.00013182,2]
[421541460,1777839926000,150.0,0.0001312,2]
[421541458,1777839926000,150.0,0.00012996,2]
[421541459,1777839926000,150.0,0.00013058,2]
[421541469,1777839949000,779.95,0.00013048,2]
[421541471,1777839955000,5779.95,0.00013032,2]
[421541470,1777839955000,4220.06,0.00013032,2]
[421541472,1777839964000,152.0,0.0001323,7]
[421541473,1777839965000,152.0,0.00013234,7]
[421541474,1777839966000,152.0,0.00013234,7]
[421541476,1777839967000,152.0,0.00013238,7]
[421541475,1777839967000,152.0,0.00013238,7]
[421541477,1777839968000,152.0,0.00013238,7]
[421541479,1777839981000,163.19,7.174e-05,2]
[421541478,1777839981000,163.19,6.522e-05,2]
[421541482,1777839982000,163.19,9.131e-05,2]
[421541481,1777839982000,163.19,8.478e-05,2]
[421541480,1777839982000,163.19,7.826e-05,2]
[421541483,1777839982000,163.19,9.783e-05,2]
[421541484,1777839983000,163.19,0.00010435,2]
[421541487,1777839983000,163.19,0.00012392,2]
[421541486,1777839983000,163.19,0.00011739,2]
[421541485,1777839983000,163.19,0.00011087,2]
[421541488,1777839984000,163.19,0.00013044,2]
[421541489,1777839994000,5000.01,0.00013044,2]
[421541490,1777839994000,5922.96,0.00013044,2]
[421541491,1777839996000,-602.38165662,0.00013661,2]
[421541493,1777840004000,152.0,0.00012391,7]
[421541492,1777840004000,152.0,0.00012391,7]
[421541495,1777840005000,152.0,0.00012394,7]
[421541494,1777840005000,152.0,0.00012394,7]
[421541498,1777840152000,9648.90168587,0.00010682,2]
[421541499,1777840155000,-701.8516666,0.00012962,2]
[421541513,1777840231000,-8173.23656239,0.00012,2]
[421541506,1777840231000,-300.0,0.00011999,2]
[421541507,1777840231000,-3018.50379797,0.00012,2]
[421541508,1777840231000,-502.72226515,0.00012,2]
[421541509,1777840231000,-3558.96512418,0.00012,2]
[421541510,1777840231000,-454.02947525,0.00012,2]
[421541511,1777840231000,-749.6440699,0.00012,2]
[421541518,1777840231000,-2827.68173886,0.00012,2]
[421541512,1777840231000,-3564.56946572,0.00012,2]
[421541516,1777840231000,-1030.13421599,0.00012,2]
[421541519,1777840231000,-1991.4070198,0.00012,2]
[421541514,1777840231000,-7599.11574409,0.00012,2]
[421541520,1777840231000,-1471.73737794,0.00012,2]
[421541515,1777840231000,-13478.77190865,0.00012,2]
[421541517,1777840231000,-2012.4399164,0.00012,2]
[421541521,1777840231000,-491.24977206,0.00012,2]
[421541570,1777840232000,-150.0,0.0001399,2]
[421541565,1777840232000,-150.0,0.00013984,2]
[421541563,1777840232000,-150.0,0.00013944,2]
[421541557,1777840232000,-145.61303065,0.00013904,2]
[421541549,1777840232000,-150.0,0.00013825,2]
[421541547,1777840232000,-150.0,0.00013765,2]
[421541548,1777840232000,-150.0,0.00013804,2]
[421541567,1777840232000,-150.0,0.00013984,2]
[421541546,1777840232000,-10873.14,0.00013746,2]
[421541561,1777840232000,-150.0,0.00013928,2]
[421541572,1777840232000,-1440.0,0.00013994,2]
[421541576,1777840232000,-163.39,0.00014041,2]
[421541578,1777840232000,-150.0,0.00014053,2]
[421541554,1777840232000,-150.0,0.00013866,2]
[421541580,1777840232000,-150.0,0.00014115,2]
[421541582,1777840232000,-150.0,0.00014123,2]
[421541584,1777840232000,-759.70831523,0.00014139,2]
[421541594,1777840232000,-1001.80802509,0.00014212,2]
[421541597,1777840232000,-5486.6978,0.00014213,2]
[421541599,1777840232000,-1086.018,0.00014213,2]
[421541601,1777840232000,-2500.0,0.00014213,2]
[421541586,1777840232000,-150.0,0.00014142,2]
[421541588,1777840232000,-150.0,0.00014142,2]
[421541574,1777840232000,-250.0,0.00014,2]
[421541545,1777840232000,-1674.89362407,0.00013746,2]
[421541550,1777840232000,-150.0,0.00013825,2]
[421541552,1777840232000,-166.66,0.0001385,2]
[421541603,1777840232000,-925.35603666,0.00014223,2]
[421541522,1777840232000,-1369.51623453,0.00012,2]
[421541524,1777840232000,-79975.97180319,0.00012,2]
[421541523,1777840232000,-1833.51726259,0.00012,2]
[421541526,1777840232000,-1200.0,0.00012999,2]
[421541528,1777840232000,-300.0,0.00012999,2]
[421541525,1777840232000,-57.85664864,0.00012962,2]
[421541530,1777840232000,-25206.2822222,0.00013,5]
[421541527,1777840232000,-1200.0,0.00012999,2]
[421541529,1777840232000,-5665.57189193,0.00013,2]
[421541532,1777840232000,-415.0,0.00013172,2]
[421541543,1777840232000,-1000.0,0.00013746,2]
[421541531,1777840232000,-2000.0,0.00013062,2]
[421541537,1777840232000,-150.0,0.0001368,2]
[421541536,1777840232000,-150.0,0.00013666,2]
[421541535,1777840232000,-150.0,0.00013666,2]
[421541533,1777840232000,-759.70831523,0.00013551,2]
[421541534,1777840232000,-837.61834338,0.00013661,2]
[421541540,1777840232000,-240.90463664,0.00013744,2]
[421541538,1777840232000,-163.39,0.00013699,2]
[421541541,1777840232000,-150.0,0.00013745,2]
[421541542,1777840232000,-1000.0,0.00013746,2]
[421541544,1777840232000,-1097.19038784,0.00013746,15]
[421541551,1777840232000,-150.0,0.00013825,2]
[421541539,1777840232000,-150.0,0.00013742,2]
[421541590,1777840232000,-150.0,0.00014177,2]
[421541559,1777840232000,-184.278472,0.00013904,2]
[421541592,1777840232000,-2555.3101,0.00014192,2]
[421541665,1777840232000,-151.0,0.00014304,2]
[421541667,1777840232000,-151.0,0.00014304,2]
[421541669,1777840232000,-500.0,0.00014304,2]
[421541673,1777840232000,-151.0,0.00014304,2]
[421541671,1777840232000,-151.0,0.00014304,2]
[421541677,1777840232000,-151.0,0.00014304,2]
[421541681,1777840232000,-438.70818035,0.00014304,2]
[421541679,1777840232000,-151.0,0.00014304,2]
[421541683,1777840232000,-151.0,0.00014304,2]
[421541685,1777840232000,-151.0,0.00014304,2]
[421541695,1777840232000,-151.0,0.00014304,2]
[421541662,1777840232000,-500.0,0.00014304,2]
[421541689,1777840232000,-151.0,0.00014304,2]
[421541700,1777840232000,-151.0,0.00014304,2]
[421541702,1777840232000,-151.0,0.00014304,2]
[421541693,1777840232000,-151.0,0.00014304,2]
[421541691,1777840232000,-151.0,0.00014304,2]
[421541704,1777840232000,-262.55199924,0.00014304,2]
[421541698,1777840232000,-151.0,0.00014304,2]
[421541706,1777840232000,-500.0,0.00014304,2]
[421541708,1777840232000,-500.0,0.00014304,2]
[421541713,1777840232000,-500.0,0.00014304,2]
[421541709,1777840232000,-500.0,0.00014304,2]
[421541605,1777840232000,-600.14577938,0.00014223,2]
[421541687,1777840232000,-151.0,0.00014304,2]
[421541658,1777840232000,-151.0,0.00014304,2]
[421541675,1777840232000,-500.0,0.00014304,2]
[421541657,1777840232000,-500.0,0.00014304,2]
[421541618,1777840232000,-150.0,0.00014301,2]
[421541609,1777840232000,-300.0,0.00014258,2]
[421541622,1777840232000,-150.0,0.00014301,2]
[421541660,1777840232000,-151.0,0.00014304,2]
[421541616,1777840232000,-1680.0,0.00014299,2]
[421541607,1777840232000,-150.0,0.00014239,2]
[421541620,1777840232000,-150.0,0.00014301,2]
[421541614,1777840232000,-12304.0,0.00014274,2]
[421541624,1777840232000,-150.0,0.00014301,2]
[421541631,1777840232000,-200.0,0.00014304,2]
[421541627,1777840232000,-150.0,0.00014301,2]
[421541629,1777840232000,-150.0,0.00014301,2]
[421541633,1777840232000,-151.0,0.00014304,2]
[421541611,1777840232000,-250.0,0.00014258,2]
[421541637,1777840232000,-151.0,0.00014304,2]
[421541634,1777840232000,-500.0,0.00014304,2]
[421541655,1777840232000,-151.0,0.00014304,2]
[421541649,1777840232000,-500.0,0.00014304,2]
[421541647,1777840232000,-151.0,0.00014304,2]
[421541711,1777840232000,-500.0,0.00014304,2]
[421541653,1777840232000,-500.0,0.00014304,2]
[421541650,1777840232000,-151.0,0.00014304,2]
[421541645,1777840232000,-500.0,0.00014304,2]
[421541639,1777840232000,-500.0,0.00014304,2]
[421541643,1777840232000,-151.0,0.00014304,2]
[421541641,1777840232000,-500.0,0.00014304,2]
[421541735,1777840233000,-345.19728589,0.00014313,2]
[421541727,1777840233000,-184.278472,0.00014312,2]
[421541732,1777840233000,-124211.44538527,0.00014313,2]
[421541730,1777840233000,-214001.05081389,0.00014313,2]
[421541726,1777840233000,-200.0,0.00014312,2]
[421541731,1777840233000,-250511.5403333,0.00014313,2]
[421541729,1777840233000,-584127.78283136,0.00014313,2]
[421541728,1777840233000,-455780.1509,0.00014313,2]
[421541725,1777840233000,-201.64825432,0.00014312,2]
[421541724,1777840233000,-500.0,0.00014312,2]
[421541722,1777840233000,-220.14365052,0.00014312,2]
[421541719,1777840233000,-534.02668022,0.00014312,2]
[421541721,1777840233000,-500.0,0.00014312,2]
[421541723,1777840233000,-500.0,0.00014312,2]
[421541720,1777840233000,-210.55405847,0.00014312,2]
[421541717,1777840233000,-500.0,0.00014304,2]
[421541716,1777840233000,-500.0,0.00014304,2]
[421541718,1777840233000,-500.0,0.00014312,2]
[421541733,1777840233000,-5535.49871986,0.00014313,2]
[421541714,1777840233000,-500.0,0.00014304,2]
[421541737,1777840233000,-1557.27262659,0.00014313,2]
[421541756,1777840233000,-1048.0719203,0.00014313,2]
[421541738,1777840233000,-371.62756367,0.00012999,2]
[421541752,1777840233000,-17.9092247,0.00013699,2]
[421541750,1777840233000,-6.30393656,0.00012999,2]
[421541736,1777840233000,-354.35040988,0.00014313,2]
[421541748,1777840233000,-200.0,0.00012999,2]
[421541755,1777840233000,-1300.57826522,0.00014313,2]
[421541751,1777840233000,-482.0907753,0.00013699,2]
[421541757,1777840233000,-419.02914301,0.00014313,2]
[421541753,1777840233000,-500.0,0.00013699,2]
[421541749,1777840233000,-493.69606344,0.00012999,2]
[421541754,1777840233000,-5257.8355244,0.00014313,2]
[421541741,1777840233000,-10825.65701233,0.00014313,2]
[421541743,1777840233000,-20121.77911205,0.00014313,2]
[421541734,1777840233000,-1898.12028,0.00014313,2]
[421541739,1777840233000,-500.0,0.00012999,2]
[421541742,1777840233000,-24585.78148199,0.00014313,2]
[421541740,1777840233000,-500.0,0.00013699,2]
[421541747,1777840233000,-300.0,0.00012999,2]
[421541745,1777840233000,-4639.39429941,0.00014313,2]
[421541744,1777840233000,-1564.62421589,0.00014313,2]
[421541746,1777840233000,-1855.39247416,0.00014313,2]
[421541758,1777840235000,1052.6846137,0.0001,2]
[421541778,1777840237000,-500.0,0.00013699,2]
[421541769,1777840237000,-506.31271718,0.00012999,2]
[421541779,1777840237000,-500.0,0.00013699,2]
[421541781,1777840237000,-500.0,0.00013699,2]
[421541770,1777840237000,-500.0,0.00012999,2]
[421541767,1777840237000,-500.0,0.00012999,2]
[421541762,1777840237000,-500.0,0.00012999,2]
[421541766,1777840237000,-500.0,0.00012999,2]
[421541765,1777840237000,-500.0,0.00012999,2]
[421541768,1777840237000,-500.0,0.00012999,2]
[421541763,1777840237000,-364.07375511,0.00012999,2]
[421541780,1777840237000,-500.0,0.00013699,2]
[421541764,1777840237000,-135.92624489,0.00012999,2]
[421541771,1777840237000,-500.0,0.00013699,2]
[421541790,1777840237000,-500.0,0.00013699,2]
[421541772,1777840237000,-500.0,0.00013699,2]
[421541786,1777840237000,-500.0,0.00013699,2]
[421541775,1777840237000,-500.0,0.00013699,2]
[421541784,1777840237000,-500.0,0.00013699,2]
[421541789,1777840237000,-500.0,0.00013699,2]
[421541787,1777840237000,-500.0,0.00013699,2]
[421541785,1777840237000,-500.0,0.00013699,2]
[421541788,1777840237000,-500.0,0.00013699,2]
[421541782,1777840237000,-500.0,0.00013699,2]
[421541783,1777840237000,-500.0,0.00013699,2]
[421541777,1777840237000,-500.0,0.00013699,2]
[421541774,1777840237000,-500.0,0.00013699,2]
[421541773,1777840237000,-500.0,0.00013699,2]
[421541776,1777840237000,-500.0,0.00013699,2]
[421541791,1777840237000,-500.0,0.00013699,2]
[421541802,1777840238000,-500.0,0.00013699,2]
[421541804,1777840238000,-500.0,0.00013699,2]
[421541801,1777840238000,-500.0,0.00013699,2]
[421541806,1777840238000,-500.0,0.00013699,2]
[421541793,1777840238000,-500.0,0.00013699,2]
[421541805,1777840238000,-500.0,0.00013699,2]
[421541795,1777840238000,-500.0,0.00013699,2]
[421541792,1777840238000,-500.0,0.00013699,2]
[421541798,1777840238000,-500.0,0.00013699,2]
[421541794,1777840238000,-500.0,0.00013699,2]
[421541797,1777840238000,-500.0,0.00013699,2]
[421541799,1777840238000,-500.0,0.00013699,2]
[421541800,1777840238000,-500.0,0.00013699,2]
[421541796,1777840238000,-500.0,0.00013699,2]
[421541815,1777840238000,-11922.05249698,0.00014313,2]
[421541812,1777840238000,-380.52932165,0.00014313,2]
[421541814,1777840238000,-340.42800103,0.00014313,2]
[421541811,1777840238000,-829.67010334,0.00014313,2]
[421541810,1777840238000,-14222.03473427,0.00014313,2]
[421541809,1777840238000,-5564.60531662,0.00014289,2]
[421541807,1777840238000,-2500.0,0.00014213,2]
[421541808,1777840238000,-5564.60531671,0.00014213,2]
[421541803,1777840238000,-500.0,0.00013699,2]
[421541813,1777840238000,-20832.00093435,0.00014313,2]
[421541843,1777840240000,-263.158857,0.00014413,2]
[421541850,1777840240000,-277.997648,0.00014422,2]
[421541841,1777840240000,-263.158857,0.00014413,2]
[421541852,1777840240000,-277.997648,0.00014422,2]
[421541851,1777840240000,-277.997648,0.00014422,2]
[421541847,1777840240000,-575.15,0.00014422,2]
[421541845,1777840240000,-575.15,0.00014422,2]
[421541842,1777840240000,-263.158857,0.00014413,2]
[421541849,1777840240000,-575.15,0.00014422,2]
[421541846,1777840240000,-575.15,0.00014422,2]
[421541855,1777840240000,-284.328649,0.00014422,2]
[421541844,1777840240000,-263.158857,0.00014413,2]
[421541854,1777840240000,-284.328649,0.00014422,2]
[421541864,1777840240000,-500.0,0.00014473,2]
[421541865,1777840240000,-150.0,0.00014567,2]
[421541858,1777840240000,-151.0,0.00014422,2]
[421541861,1777840240000,-151.0,0.00014422,2]
[421541859,1777840240000,-151.0,0.00014422,2]
[421541853,1777840240000,-277.997648,0.00014422,2]
[421541836,1777840240000,-289295.4290076,0.00014412,2]
[421541848,1777840240000,-575.15,0.00014422,2]
[421541832,1777840240000,-3409.5592763,0.00014412,2]
[421541823,1777840240000,-500.0,0.00014412,2]
[421541835,1777840240000,-500.0,0.00014412,2]
[421541857,1777840240000,-284.328649,0.00014422,2]
[421541817,1777840240000,-197312.88227358,0.00014313,2]
[421541820,1777840240000,-163.39,0.00014384,2]
[421541824,1777840240000,-522.06,0.00014412,2]
[421541819,1777840240000,-1440.0,0.00014327,2]
[421541828,1777840240000,-500.0,0.00014412,2]
[421541818,1777840240000,-207.2677,0.00014323,2]
[421541821,1777840240000,-152.0,0.00014402,7]
[421541825,1777840240000,-500.0,0.00014412,2]
[421541834,1777840240000,-500.0,0.00014412,2]
[421541822,1777840240000,-666.0,0.00014411,2]
[421541827,1777840240000,-500.0,0.00014412,2]
[421541840,1777840240000,-5503.0485825,0.00014413,2]
[421541830,1777840240000,-500.0,0.00014412,2]
[421541839,1777840240000,-238.3725117,0.00014413,2]
[421541831,1777840240000,-500.0,0.00014412,2]
[421541829,1777840240000,-500.0,0.00014412,2]
[421541838,1777840240000,-5597.0673465,0.00014413,2]
[421541837,1777840240000,-275746.3148988,0.00014413,2]
[421541833,1777840240000,-500.0,0.00014412,2]
[421541826,1777840240000,-500.0,0.00014412,2]
[421541863,1777840240000,-503.11588169,0.00014473,2]